fUSD/lending_fUSD_20260630
["ID","MTS","AMOUNT","RATE_DAILY","PERIOD"]
[426724440,1782761446000,-509.45,0.000302,2]
[426724442,1782761446000,-509.45,0.000302,2]
[426724444,1782761446000,-509.45,0.000302,2]
[426724446,1782761446000,-509.45,0.000302,2]
[426724445,1782761446000,-509.45,0.000302,2]
[426724432,1782761446000,-509.45,0.000302,2]
[426724439,1782761446000,-509.45,0.000302,2]
[426724450,1782761446000,-509.49,0.000302,2]
[426724441,1782761446000,-509.45,0.000302,2]
[426724449,1782761446000,-509.49,0.000302,2]
[426724457,1782761446000,-22500.0,0.0003025,2]
[426724452,1782761446000,-152.0,0.00030224,5]
[426724448,1782761446000,-509.49,0.000302,2]
[426724453,1782761446000,-500.0,0.00030249,2]
[426724458,1782761446000,-25000.0,0.0003025,2]
[426724451,1782761446000,-509.49,0.000302,2]
[426724434,1782761446000,-509.45,0.000302,2]
[426724454,1782761446000,-2500.0,0.0003025,2]
[426724447,1782761446000,-509.49,0.000302,2]
[426724433,1782761446000,-509.45,0.000302,2]
[426724421,1782761446000,-509.45,0.000302,2]
[426724429,1782761446000,-509.45,0.000302,2]
[426724456,1782761446000,-12500.0,0.0003025,2]
[426724409,1782761446000,-509.45,0.000302,2]
[426724410,1782761446000,-509.45,0.000302,2]
[426724411,1782761446000,-509.45,0.000302,2]
[426724408,1782761446000,-509.45,0.000302,2]
[426724412,1782761446000,-509.45,0.000302,2]
[426724413,1782761446000,-509.45,0.000302,2]
[426724414,1782761446000,-509.45,0.000302,2]
[426724417,1782761446000,-509.45,0.000302,2]
[426724416,1782761446000,-509.45,0.000302,2]
[426724418,1782761446000,-509.45,0.000302,2]
[426724420,1782761446000,-509.45,0.000302,2]
[426724424,1782761446000,-509.45,0.000302,2]
[426724415,1782761446000,-509.45,0.000302,2]
[426724419,1782761446000,-509.45,0.000302,2]
[426724423,1782761446000,-509.45,0.000302,2]
[426724422,1782761446000,-509.45,0.000302,2]
[426724426,1782761446000,-509.45,0.000302,2]
[426724436,1782761446000,-509.45,0.000302,2]
[426724425,1782761446000,-509.45,0.000302,2]
[426724427,1782761446000,-509.45,0.000302,2]
[426724428,1782761446000,-509.45,0.000302,2]
[426724430,1782761446000,-509.45,0.000302,2]
[426724435,1782761446000,-509.45,0.000302,2]
[426724459,1782761446000,-151.83365069,0.00030273,2]
[426724455,1782761446000,-25000.0,0.0003025,2]
[426724500,1782761446000,-251.0,0.0003069,2]
[426724486,1782761446000,-254.0,0.00030627,30]
[426724485,1782761446000,-162.82564677,0.00030626,2]
[426724491,1782761446000,-970.0,0.00030635,30]
[426724490,1782761446000,-619.0,0.00030635,30]
[426724493,1782761446000,-241.0,0.00030635,30]
[426724497,1782761446000,-164.0,0.00030674,30]
[426724495,1782761446000,-156.0,0.00030674,30]
[426724494,1782761446000,-500.0,0.00030673,2]
[426724496,1782761446000,-357.0,0.00030674,30]
[426724498,1782761446000,-162.0,0.00030674,30]
[426724499,1782761446000,-251.0,0.0003069,2]
[426724503,1782761446000,-251.0,0.0003069,2]
[426724504,1782761446000,-251.0,0.0003069,2]
[426724501,1782761446000,-251.0,0.0003069,2]
[426724502,1782761446000,-251.0,0.0003069,2]
[426724506,1782761446000,-251.0,0.0003069,2]
[426724510,1782761446000,-12500.0,0.0003075,2]
[426724505,1782761446000,-251.0,0.0003069,2]
[426724508,1782761446000,-2570.07,0.000307,7]
[426724511,1782761446000,-754.48,0.00030813,2]
[426724509,1782761446000,-1632.96,0.000307,7]
[426724507,1782761446000,-483.48011144,0.00030699,2]
[426724460,1782761446000,-653.64,0.000303,7]
[426724487,1782761446000,-399.0,0.00030627,30]
[426724488,1782761446000,-151.83365069,0.00030627,2]
[426724489,1782761446000,-155.0,0.00030635,30]
[426724484,1782761446000,-2160.09,0.00030625,2]
[426724461,1782761446000,-853.4192019,0.00030303,2]
[426724463,1782761446000,-48611.9361779,0.00030303,2]
[426724462,1782761446000,-5496.377358,0.00030303,2]
[426724464,1782761446000,-318.49526478,0.0003036,2]
[426724466,1782761446000,-251.0,0.0003036,2]
[426724467,1782761446000,-251.0,0.0003036,2]
[426724483,1782761446000,-12500.0,0.00030625,2]
[426724465,1782761446000,-251.0,0.0003036,2]
[426724469,1782761446000,-22500.0,0.00030375,2]
[426724471,1782761446000,-279.98224209,0.00030411,60]
[426724473,1782761446000,-353.49558011,0.00030421,30]
[426724478,1782761446000,-17124.49,0.000305,2]
[426724468,1782761446000,-12500.0,0.00030375,2]
[426724479,1782761446000,-22500.0,0.000305,2]
[426724482,1782761446000,-1505.32989242,0.00030548,2]
[426724492,1782761446000,-353.0,0.00030635,30]
[426724481,1782761446000,-500.0,0.00030543,20]
[426724480,1782761446000,-160.81306021,0.000305,2]
[426724477,1782761446000,-12500.0,0.000305,2]
[426724472,1782761446000,-1765.0,0.00030415,2]
[426724476,1782761446000,-2500.0,0.000305,2]
[426724475,1782761446000,-152.5325826,0.00030477,7]
[426724470,1782761446000,-194.52,0.00030411,120]
[426724474,1782761446000,-500.0,0.00030476,5]
[426724564,1782761447000,-619.0,0.00031635,30]
[426724566,1782761447000,-353.0,0.00031635,30]
[426724549,1782761447000,-200.0,0.000314,4]
[426724552,1782761447000,-170.22403167,0.00031495,30]
[426724553,1782761447000,-754.48,0.00031498,2]
[426724554,1782761447000,-12500.0,0.000315,2]
[426724546,1782761447000,-251.0,0.0003135,2]
[426724548,1782761447000,-2570.07,0.000314,7]
[426724550,1782761447000,-500.0,0.00031459,22]
[426724543,1782761447000,-251.0,0.0003135,2]
[426724551,1782761447000,-1505.32989241,0.00031479,2]
[426724565,1782761447000,-970.0,0.00031635,30]
[426724547,1782761447000,-12500.0,0.00031375,2]
[426724567,1782761447000,-241.0,0.00031635,30]
[426724572,1782761447000,-251.0,0.0003168,2]
[426724555,1782761447000,-1000.0,0.00031507,40]
[426724561,1782761447000,-254.0,0.00031627,30]
[426724557,1782761447000,-500.0,0.00031589,6]
[426724563,1782761447000,-155.0,0.00031635,30]
[426724559,1782761447000,-247.54223219,0.000316,2]
[426724558,1782761447000,-1632.96,0.000316,7]
[426724560,1782761447000,-12500.0,0.00031625,2]
[426724562,1782761447000,-399.0,0.00031627,30]
[426724568,1782761447000,-156.0,0.00031674,30]
[426724569,1782761447000,-357.0,0.00031674,30]
[426724570,1782761447000,-164.0,0.00031674,30]
[426724571,1782761447000,-162.0,0.00031674,30]
[426724545,1782761447000,-251.0,0.0003135,2]
[426724556,1782761447000,-751.58,0.00031507,4]
[426724542,1782761447000,-251.0,0.0003135,2]
[426724518,1782761447000,-1471.48520949,0.00030942,2]
[426724538,1782761447000,-362.0,0.00031342,3]
[426724516,1782761447000,-1334.57174137,0.00030942,2]
[426724513,1782761447000,-272.97744924,0.00030869,2]
[426724515,1782761447000,-1296.80291869,0.00030942,2]
[426724514,1782761447000,-12500.0,0.00030875,2]
[426724517,1782761447000,-1442.09583376,0.00030942,2]
[426724528,1782761447000,-251.0,0.0003102,2]
[426724519,1782761447000,-151.83365069,0.00030981,2]
[426724529,1782761447000,-251.0,0.0003102,2]
[426724520,1782761447000,-12500.0,0.00031,2]
[426724523,1782761447000,-1000.0,0.00031,7]
[426724522,1782761447000,-653.64,0.00031,7]
[426724521,1782761447000,-2026.41,0.00031,7]
[426724527,1782761447000,-251.0,0.0003102,2]
[426724524,1782761447000,-203.07737812,0.00031,2]
[426724525,1782761447000,-150.0,0.00031011,2]
[426724526,1782761447000,-251.0,0.0003102,2]
[426724531,1782761447000,-251.0,0.0003102,2]
[426724541,1782761447000,-251.0,0.0003135,2]
[426724530,1782761447000,-251.0,0.0003102,2]
[426724532,1782761447000,-251.0,0.0003102,2]
[426724535,1782761447000,-12500.0,0.0003125,2]
[426724533,1782761447000,-500.0,0.00031032,6]
[426724534,1782761447000,-12500.0,0.00031125,2]
[426724536,1782761447000,-152.5325826,0.00031286,10]
[426724537,1782761447000,-151.83365069,0.00031334,2]
[426724539,1782761447000,-263.0,0.00031342,3]
[426724540,1782761447000,-500.0,0.00031342,2]
[426724544,1782761447000,-251.0,0.0003135,2]
[426724575,1782761447000,-160.36668353,0.0003168,2]
[426724512,1782761447000,-466.92151993,0.00030846,2]
[426724579,1782761447000,-653.64,0.000317,7]
[426724606,1782761447000,-151.83365069,0.00032396,2]
[426724609,1782761447000,-200.0,0.00032544,2]
[426724610,1782761447000,-150.0,0.00032562,2]
[426724608,1782761447000,-653.64,0.000325,7]
[426724611,1782761447000,-2000.0,0.00032582,7]
[426724612,1782761447000,-1632.96,0.000326,7]
[426724616,1782761447000,-619.0,0.00032635,30]
[426724615,1782761447000,-155.0,0.00032635,30]
[426724613,1782761447000,-254.0,0.00032627,30]
[426724614,1782761447000,-399.0,0.00032627,30]
[426724618,1782761447000,-353.0,0.00032635,30]
[426724620,1782761447000,-156.0,0.00032674,30]
[426724621,1782761447000,-357.0,0.00032674,30]
[426724617,1782761447000,-970.0,0.00032635,30]
[426724622,1782761447000,-164.0,0.00032674,30]
[426724619,1782761447000,-241.0,0.00032635,30]
[426724623,1782761447000,-162.0,0.00032674,30]
[426724630,1782761447000,-500.0,0.00032702,8]
[426724629,1782761447000,-322.3200743,0.00032699,7]
[426724624,1782761447000,-1362.0,0.00032676,2]
[426724627,1782761447000,-6087.0,0.00032676,2]
[426724626,1782761447000,-1236.761,0.00032676,2]
[426724628,1782761447000,-3565.0,0.00032676,2]
[426724632,1782761447000,-205.78,0.00032754,3]
[426724631,1782761447000,-151.83365069,0.0003275,2]
[426724634,1782761447000,-152.5325826,0.00032861,12]
[426724633,1782761447000,-328.94686115,0.00032839,2]
[426724574,1782761447000,-251.0,0.0003168,2]
[426724625,1782761447000,-1283.745,0.00032676,2]
[426724607,1782761447000,-1505.32989241,0.0003241,2]
[426724635,1782761447000,-181.98496616,0.00032869,7]
[426724603,1782761447000,-516.24,0.00032232,7]
[426724578,1782761447000,-322.3200743,0.00031699,7]
[426724573,1782761447000,-251.0,0.0003168,2]
[426724580,1782761447000,-206.64,0.00031746,3]
[426724576,1782761447000,-160.36668353,0.0003168,2]
[426724577,1782761447000,-151.83365069,0.00031688,2]
[426724582,1782761447000,-1000.0,0.00031782,2]
[426724592,1782761447000,-151.83365069,0.00032042,2]
[426724599,1782761447000,-500.0,0.00032231,2]
[426724593,1782761447000,-185.98,0.00032045,30]
[426724583,1782761447000,-12500.0,0.00031875,2]
[426724584,1782761447000,-466.92151993,0.00031877,2]
[426724585,1782761447000,-188.0,0.00031977,2]
[426724591,1782761447000,-2026.41,0.00032,7]
[426724588,1782761447000,-12500.0,0.00032,2]
[426724581,1782761447000,-12500.0,0.0003175,2]
[426724590,1782761447000,-4470.6048,0.00032,2]
[426724601,1782761447000,-9912.37,0.00032232,7]
[426724586,1782761447000,-2844.0,0.00031993,5]
[426724596,1782761447000,-754.48,0.00032183,2]
[426724600,1782761447000,-296.64,0.00032232,7]
[426724597,1782761447000,-2570.07,0.000322,7]
[426724602,1782761447000,-2702.38,0.00032232,7]
[426724604,1782761447000,-59045.75,0.00032232,7]
[426724605,1782761447000,-12500.0,0.0003225,2]
[426724595,1782761447000,-500.0,0.00032145,7]
[426724594,1782761447000,-12500.0,0.00032125,2]
[426724589,1782761447000,-11011.3419,0.00032,2]
[426724587,1782761447000,-2067.0,0.00031993,5]
[426724598,1782761447000,-353.49558011,0.00032212,30]
[426724678,1782761448000,-1000.0,0.00032877,10]
[426724677,1782761448000,-1000.0,0.00032877,10]
[426724675,1782761448000,-1000.0,0.00032877,10]
[426724680,1782761448000,-231.1,0.00032877,2]
[426724676,1782761448000,-1000.0,0.00032877,10]
[426724670,1782761448000,-1000.0,0.00032877,10]
[426724673,1782761448000,-1000.0,0.00032877,10]
[426724668,1782761448000,-1000.0,0.00032877,10]
[426724671,1782761448000,-1000.0,0.00032877,10]
[426724672,1782761448000,-1000.0,0.00032877,10]
[426724669,1782761448000,-1000.0,0.00032877,10]
[426724674,1782761448000,-1000.0,0.00032877,10]
[426724679,1782761448000,-455.0,0.00032877,10]
[426724693,1782761448000,-500.0,0.00033,20]
[426724692,1782761448000,-500.0,0.00033,20]
[426724681,1782761448000,-500.0,0.00032877,2]
[426724683,1782761448000,-2000.0,0.00032877,50]
[426724689,1782761448000,-500.0,0.00033,20]
[426724691,1782761448000,-500.0,0.00033,20]
[426724684,1782761448000,-195.99,0.000329,14]
[426724686,1782761448000,-275.93715932,0.00032938,2]
[426724685,1782761448000,-2570.07,0.000329,7]
[426724688,1782761448000,-500.0,0.00033,20]
[426724687,1782761448000,-152.0,0.00032987,6]
[426724690,1782761448000,-500.0,0.00033,20]
[426724667,1782761448000,-1000.0,0.00032877,10]
[426724695,1782761448000,-500.0,0.00033,20]
[426724682,1782761448000,-500.0,0.00032877,2]
[426724665,1782761448000,-1000.0,0.00032877,10]
[426724649,1782761448000,-1000.0,0.00032877,10]
[426724664,1782761448000,-1000.0,0.00032877,10]
[426724698,1782761448000,-500.0,0.00033,20]
[426724637,1782761448000,-3000.0,0.00032876,2]
[426724636,1782761448000,-500.0,0.00032876,14]
[426724639,1782761448000,-3000.0,0.00032876,2]
[426724640,1782761448000,-3000.0,0.00032876,2]
[426724638,1782761448000,-3000.0,0.00032876,2]
[426724641,1782761448000,-3000.0,0.00032876,2]
[426724642,1782761448000,-2066.7244798,0.00032876,2]
[426724643,1782761448000,-1000.0,0.00032877,10]
[426724653,1782761448000,-1000.0,0.00032877,10]
[426724644,1782761448000,-1000.0,0.00032877,10]
[426724654,1782761448000,-1000.0,0.00032877,10]
[426724645,1782761448000,-1000.0,0.00032877,10]
[426724647,1782761448000,-1000.0,0.00032877,10]
[426724652,1782761448000,-1000.0,0.00032877,10]
[426724650,1782761448000,-1000.0,0.00032877,10]
[426724648,1782761448000,-1000.0,0.00032877,10]
[426724651,1782761448000,-1000.0,0.00032877,10]
[426724656,1782761448000,-1000.0,0.00032877,10]
[426724666,1782761448000,-1000.0,0.00032877,10]
[426724655,1782761448000,-1000.0,0.00032877,10]
[426724657,1782761448000,-1000.0,0.00032877,10]
[426724658,1782761448000,-1000.0,0.00032877,10]
[426724662,1782761448000,-1000.0,0.00032877,10]
[426724659,1782761448000,-1000.0,0.00032877,10]
[426724660,1782761448000,-1000.0,0.00032877,10]
[426724661,1782761448000,-1000.0,0.00032877,10]
[426724663,1782761448000,-1000.0,0.00032877,10]
[426724696,1782761448000,-500.0,0.00033,20]
[426724646,1782761448000,-1000.0,0.00032877,10]
[426724694,1782761448000,-500.0,0.00033,20]
[426724739,1782761448000,-500.0,0.00033,20]
[426724741,1782761448000,-500.0,0.00033,20]
[426724738,1782761448000,-500.0,0.00033,20]
[426724740,1782761448000,-500.0,0.00033,20]
[426724733,1782761448000,-500.0,0.00033,20]
[426724731,1782761448000,-500.0,0.00033,20]
[426724732,1782761448000,-500.0,0.00033,20]
[426724729,1782761448000,-500.0,0.00033,20]
[426724736,1782761448000,-500.0,0.00033,20]
[426724737,1782761448000,-500.0,0.00033,20]
[426724735,1782761448000,-500.0,0.00033,20]
[426724734,1782761448000,-500.0,0.00033,20]
[426724742,1782761448000,-500.0,0.00033,20]
[426724744,1782761448000,-500.0,0.00033,20]
[426724743,1782761448000,-500.0,0.00033,20]
[426724745,1782761448000,-500.0,0.00033,20]
[426724750,1782761448000,-500.0,0.00033,20]
[426724752,1782761448000,-500.0,0.00033,20]
[426724753,1782761448000,-500.0,0.00033,20]
[426724746,1782761448000,-500.0,0.00033,20]
[426724748,1782761448000,-500.0,0.00033,20]
[426724751,1782761448000,-500.0,0.00033,20]
[426724749,1782761448000,-500.0,0.00033,20]
[426724755,1782761448000,-500.0,0.00033,20]
[426724756,1782761448000,-440.05,0.00033,20]
[426724757,1782761448000,-428.63,0.000331,120]
[426724754,1782761448000,-500.0,0.00033,20]
[426724730,1782761448000,-500.0,0.00033,20]
[426724722,1782761448000,-500.0,0.00033,20]
[426724747,1782761448000,-500.0,0.00033,20]
[426724720,1782761448000,-500.0,0.00033,20]
[426724727,1782761448000,-500.0,0.00033,20]
[426724699,1782761448000,-500.0,0.00033,20]
[426724697,1782761448000,-500.0,0.00033,20]
[426724700,1782761448000,-500.0,0.00033,20]
[426724702,1782761448000,-500.0,0.00033,20]
[426724703,1782761448000,-500.0,0.00033,20]
[426724701,1782761448000,-500.0,0.00033,20]
[426724705,1782761448000,-500.0,0.00033,20]
[426724715,1782761448000,-500.0,0.00033,20]
[426724712,1782761448000,-500.0,0.00033,20]
[426724706,1782761448000,-500.0,0.00033,20]
[426724708,1782761448000,-500.0,0.00033,20]
[426724716,1782761448000,-500.0,0.00033,20]
[426724710,1782761448000,-500.0,0.00033,20]
[426724704,1782761448000,-500.0,0.00033,20]
[426724711,1782761448000,-500.0,0.00033,20]
[426724713,1782761448000,-500.0,0.00033,20]
[426724726,1782761448000,-500.0,0.00033,20]
[426724724,1782761448000,-500.0,0.00033,20]
[426724728,1782761448000,-500.0,0.00033,20]
[426724719,1782761448000,-500.0,0.00033,20]
[426724723,1782761448000,-500.0,0.00033,20]
[426724718,1782761448000,-500.0,0.00033,20]
[426724725,1782761448000,-500.0,0.00033,20]
[426724707,1782761448000,-500.0,0.00033,20]
[426724709,1782761448000,-500.0,0.00033,20]
[426724717,1782761448000,-500.0,0.00033,20]
[426724714,1782761448000,-500.0,0.00033,20]
[426724721,1782761448000,-500.0,0.00033,20]
[426724797,1782761449000,-300.0,0.00033548,2]
[426724788,1782761449000,-300.0,0.00033548,2]
[426724789,1782761449000,-584.66801755,0.00033548,2]
[426724783,1782761449000,-315.08073888,0.00033548,2]
[426724787,1782761449000,-513.95923093,0.00033548,2]
[426724790,1782761449000,-300.0,0.00033548,2]
[426724794,1782761449000,-300.0,0.00033548,2]
[426724791,1782761449000,-454.26701287,0.00033548,2]
[426724792,1782761449000,-300.0,0.00033548,2]
[426724793,1782761449000,-300.0,0.00033548,2]
[426724801,1782761449000,-430.73777388,0.00033548,2]
[426724795,1782761449000,-321.88464694,0.00033548,2]
[426724798,1782761449000,-300.0,0.00033548,2]
[426724800,1782761449000,-300.0,0.00033548,2]
[426724799,1782761449000,-1101.0618519,0.00033548,2]
[426724786,1782761449000,-569.01654071,0.00033548,2]
[426724805,1782761449000,-300.0,0.00033548,2]
[426724806,1782761449000,-495.28773916,0.00033548,2]
[426724802,1782761449000,-300.0,0.00033548,2]
[426724807,1782761449000,-300.0,0.00033548,2]
[426724804,1782761449000,-300.0,0.00033548,2]
[426724803,1782761449000,-300.0,0.00033548,2]
[426724796,1782761449000,-446.09705538,0.00033548,2]
[426724785,1782761449000,-311.22255108,0.00033548,2]
[426724778,1782761449000,-345.7536,0.00033548,2]
[426724782,1782761449000,-1807.30940739,0.00033548,2]
[426724809,1782761449000,-300.0,0.00033548,2]
[426724760,1782761449000,-273.5387136,0.00033299,2]
[426724758,1782761449000,-151.83365069,0.00033103,2]
[426724759,1782761449000,-500.0,0.00033258,8]
[426724763,1782761449000,-1505.32989241,0.00033342,2]
[426724762,1782761449000,-2000.0,0.00033324,7]
[426724761,1782761449000,-2026.41,0.000333,30]
[426724764,1782761449000,-536.02494109,0.00033392,2]
[426724765,1782761449000,-312.03666516,0.00033392,2]
[426724767,1782761449000,-200.0,0.000334,8]
[426724766,1782761449000,-653.64,0.000334,7]
[426724775,1782761449000,-300.0,0.00033548,2]
[426724773,1782761449000,-3061.0,0.00033544,10]
[426724771,1782761449000,-338.754249,0.00033517,7]
[426724770,1782761449000,-151.83365069,0.00033457,2]
[426724774,1782761449000,-300.0,0.00033548,2]
[426724769,1782761449000,-269.10870479,0.00033409,2]
[426724772,1782761449000,-277.019202,0.00033517,7]
[426724768,1782761449000,-225.85576986,0.00033409,2]
[426724777,1782761449000,-300.0,0.00033548,2]
[426724780,1782761449000,-300.0,0.00033548,2]
[426724781,1782761449000,-954.30228826,0.00033548,2]
[426724779,1782761449000,-323.72926036,0.00033548,2]
[426724784,1782761449000,-576.43989485,0.00033548,2]
[426724776,1782761449000,-300.0,0.00033548,2]
[426724808,1782761449000,-300.0,0.00033548,2]
[426724811,1782761449000,-300.50056821,0.00033548,2]
[426724833,1782761449000,-569.01654071,0.00033548,2]
[426724845,1782761449000,-300.0,0.00033548,2]
[426724841,1782761449000,-300.0,0.00033548,2]
[426724843,1782761449000,-446.09705538,0.00033548,2]
[426724842,1782761449000,-300.0,0.00033548,2]
[426724835,1782761449000,-300.0,0.00033548,2]
[426724844,1782761449000,-300.0,0.00033548,2]
[426724847,1782761449000,-514.01808118,0.00033595,2]
[426724857,1782761449000,-970.0,0.00033635,30]
[426724846,1782761449000,-1798.0,0.00033588,2]
[426724840,1782761449000,-300.0,0.00033548,2]
[426724848,1782761449000,-1446.39,0.00033596,2]
[426724855,1782761449000,-155.0,0.00033635,30]
[426724856,1782761449000,-619.0,0.00033635,30]
[426724850,1782761449000,-1796.0,0.00033625,2]
[426724852,1782761449000,-399.0,0.00033627,30]
[426724851,1782761449000,-254.0,0.00033627,30]
[426724854,1782761449000,-671.0,0.00033635,5]
[426724859,1782761449000,-241.0,0.00033635,30]
[426724858,1782761449000,-353.0,0.00033635,30]
[426724860,1782761449000,-65502.75413252,0.0003366,2]
[426724810,1782761449000,-607.84242655,0.00033548,2]
[426724853,1782761449000,-151.0,0.00033632,14]
[426724839,1782761449000,-300.0,0.00033548,2]
[426724849,1782761449000,-1737.06,0.00033614,7]
[426724837,1782761449000,-300.0,0.00033548,2]
[426724812,1782761449000,-300.0,0.00033548,2]
[426724836,1782761449000,-584.66801755,0.00033548,2]
[426724813,1782761449000,-536.77715252,0.00033548,2]
[426724814,1782761449000,-300.0,0.00033548,2]
[426724815,1782761449000,-730.12015411,0.00033548,2]
[426724817,1782761449000,-300.0,0.00033548,2]
[426724818,1782761449000,-300.0,0.00033548,2]
[426724830,1782761449000,-300.0,0.00033548,2]
[426724831,1782761449000,-311.22255108,0.00033548,2]
[426724820,1782761449000,-300.0,0.00033548,2]
[426724822,1782761449000,-345.7536,0.00033548,2]
[426724816,1782761449000,-302.16203863,0.00033548,2]
[426724825,1782761449000,-300.0,0.00033548,2]
[426724823,1782761449000,-300.0,0.00033548,2]
[426724819,1782761449000,-300.0,0.00033548,2]
[426724827,1782761449000,-1807.30940739,0.00033548,2]
[426724829,1782761449000,-576.43989485,0.00033548,2]
[426724838,1782761449000,-454.26701287,0.00033548,2]
[426724824,1782761449000,-300.0,0.00033548,2]
[426724826,1782761449000,-954.30228826,0.00033548,2]
[426724828,1782761449000,-300.0,0.00033548,2]
[426724832,1782761449000,-300.0,0.00033548,2]
[426724834,1782761449000,-300.0,0.00033548,2]
[426724821,1782761449000,-300.0,0.00033548,2]
[426724904,1782761450000,-1000.0,0.00033973,7]
[426724888,1782761450000,-174.77,0.000339,120]
[426724894,1782761450000,-1000.0,0.00033973,7]
[426724899,1782761450000,-1000.0,0.00033973,7]
[426724905,1782761450000,-1000.0,0.00033973,7]
[426724896,1782761450000,-1000.0,0.00033973,7]
[426724902,1782761450000,-1000.0,0.00033973,7]
[426724895,1782761450000,-1000.0,0.00033973,7]
[426724901,1782761450000,-1000.0,0.00033973,7]
[426724893,1782761450000,-5000.0,0.00033969,2]
[426724898,1782761450000,-1000.0,0.00033973,7]
[426724903,1782761450000,-1000.0,0.00033973,7]
[426724897,1782761450000,-1000.0,0.00033973,7]
[426724914,1782761450000,-1000.0,0.00033973,7]
[426724906,1782761450000,-1000.0,0.00033973,7]
[426724908,1782761450000,-1000.0,0.00033973,7]
[426724909,1782761450000,-1000.0,0.00033973,7]
[426724907,1782761450000,-1000.0,0.00033973,7]
[426724911,1782761450000,-1000.0,0.00033973,7]
[426724917,1782761450000,-1000.0,0.00033973,7]
[426724910,1782761450000,-1000.0,0.00033973,7]
[426724912,1782761450000,-1000.0,0.00033973,7]
[426724918,1782761450000,-1000.0,0.00033973,7]
[426724915,1782761450000,-1000.0,0.00033973,7]
[426724916,1782761450000,-1000.0,0.00033973,7]
[426724891,1782761450000,-5000.0,0.00033969,2]
[426724900,1782761450000,-1000.0,0.00033973,7]
[426724892,1782761450000,-5000.0,0.00033969,2]
[426724863,1782761450000,-357.0,0.00033674,30]
[426724886,1782761450000,-513.08,0.00033859,7]
[426724913,1782761450000,-1000.0,0.00033973,7]
[426724866,1782761450000,-150.0,0.00033687,2]
[426724865,1782761450000,-162.0,0.00033674,30]
[426724868,1782761450000,-5496.377358,0.00033693,2]
[426724861,1782761450000,-1446.39,0.00033664,2]
[426724867,1782761450000,-853.4192019,0.00033693,2]
[426724864,1782761450000,-164.0,0.00033674,30]
[426724862,1782761450000,-156.0,0.00033674,30]
[426724877,1782761450000,-1501.39320904,0.00033778,2]
[426724873,1782761450000,-1000.0,0.00033764,2]
[426724880,1782761450000,-1000.0,0.00033781,2]
[426724869,1782761450000,-1632.96,0.000337,30]
[426724874,1782761450000,-1000.0,0.00033764,2]
[426724870,1782761450000,-154.6391,0.00033743,2]
[426724876,1782761450000,-1458.90328352,0.00033778,2]
[426724875,1782761450000,-1883.96,0.00033764,2]
[426724879,1782761450000,-1000.0,0.00033781,2]
[426724872,1782761450000,-500.0,0.00033764,2]
[426724871,1782761450000,-356.71,0.00033761,3]
[426724878,1782761450000,-1000.0,0.00033781,2]
[426724881,1782761450000,-1000.0,0.00033781,2]